bitfinex-derivatives/quotes_ETHF0:USTF0_20241104
["timestamp","ask_amount","ask_price","bid_price","bid_amount"]
[1730710006928,0.40701,2458.8,2458.7,0.40701]
[1730710007632,4.19587048,2459.0,2458.6,0.40703]
[1730710007829,0.40707,2458.5,2458.4,0.40706]
[1730710008023,0.40705,2458.6,2458.5,0.40704]
[1730710008528,3.17843048,2459.0,2458.2,5.11075]
[1730710008726,0.40702,2458.8,2458.7,0.40701]
[1730710008924,0.40704,2458.6,2458.5,3.61484]
[1730710009122,0.40703,2458.7,2458.6,0.40703]
[1730710009826,0.40704,2458.6,2458.5,3.61484]
[1730710010326,0.40704,2458.7,2458.6,0.40703]
[1730710011121,0.40704,2458.7,2458.3,1.01771]
[1730710011122,0.40701,2458.8,2458.7,0.40701]
[1730710011332,0.40701,2458.8,2458.1,0.4377]
[1730710011333,3.17843048,2458.9,2457.5,4.19647048]
[1730710011532,4.9218,2459.0,2457.6,0.40719]
[1730710011533,0.40719,2457.7,2457.6,0.40719]
[1730710011727,1.01789,2457.9,2457.4,0.40723]
[1730710011927,0.40721,2457.6,2457.4,0.40723]
[1730710012230,0.40722,2457.5,2457.4,0.40723]
[1730710012837,3.2078,2457.8,2457.5,0.40721]
[1730710012838,0.40718,2457.7,2457.5,0.40721]
[1730710013035,0.40717,2457.9,2457.7,0.40718]
[1730710013240,0.4072,2457.7,2457.5,0.40721]
[1730710013535,1.01784,2458.0,2457.5,0.40721]
[1730710013728,1.01784,2458.0,2457.3,3.2078]
[1730710013729,0.40723,2457.4,2457.3,3.61505]
[1730710013930,0.40723,2457.4,2457.3,3.2078]
[1730710014334,7.2774,2457.4,2456.4,6.38623048]
[1730710014532,0.40736,2456.7,2456.6,0.40737]
[1730710014730,3.2078,2457.1,2456.5,0.4501]
[1730710014930,0.4602,2457.3,2456.5,0.4501]
[1730710015133,0.40729,2457.1,2457.0,0.40729]
[1730710015434,0.40728,2457.1,2457.0,4.4769]
[1730710015633,0.40728,2457.1,2457.0,4.0696]
[1730710015841,0.40728,2457.1,2457.0,4.4769]
[1730710016039,0.40728,2457.1,2457.0,4.0696]
[1730710016243,4.2259,2457.4,2456.8,0.40733]
[1730710016244,0.40732,2456.9,2456.8,0.40733]
[1730710017236,3.60503048,2457.3,2456.7,3.2078]
[1730710017430,0.40733,2456.8,2456.7,3.2078]
[1730710017631,0.40735,2456.7,2456.6,0.40735]
[1730710018031,0.40735,2456.7,2456.6,4.47775]
[1730710018234,0.40735,2456.7,2456.6,4.0704]
[1730710018431,0.40737,2456.6,2456.5,0.85747]
[1730710018631,3.17843048,2457.0,2456.5,0.4501]
[1730710018827,0.40735,2456.8,2456.6,0.40735]
[1730710019041,0.40735,2456.7,2456.6,0.40735]
[1730710019536,0.40735,2456.7,2456.6,4.47775]
[1730710019737,0.40735,2456.7,2456.6,0.40735]
[1730710020339,3.17843048,2457.0,2456.5,0.4501]
[1730710020846,0.40735,2456.8,2456.6,0.40737]
[1730710021142,0.40735,2456.7,2456.6,0.40737]
[1730710021538,4.22603,2457.1,2456.6,0.40737]
[1730710021539,3.2078,2457.1,2456.6,4.0704]
[1730710021844,0.40728,2457.2,2457.1,0.40728]
[1730710022139,0.40718,2457.7,2457.5,0.40721]
[1730710022348,3.2078,2457.8,2457.4,0.40722]
[1730710022742,0.40722,2457.5,2457.4,0.40722]
[1730710023041,3.2078,2457.8,2457.2,4.059]
[1730710023341,0.40721,2457.6,2457.3,0.40725]
[1730710023646,3.2078,2457.8,2457.4,0.40722]
[1730710023849,0.40722,2457.5,2457.4,0.40722]
[1730710024149,1.233,2458.2,2457.2,5.07717]
[1730710024150,1.01778,2458.2,2457.2,5.07717]
[1730710024333,0.40712,2458.1,2458.0,0.40713]
[1730710024843,0.40715,2458.0,2457.9,0.40715]
[1730710025434,0.40715,2457.9,2457.8,3.61495]
[1730710025638,1.88703,2458.3,2457.8,3.2078]
[1730710025839,0.40715,2458.0,2457.9,0.40715]
[1730710027036,0.40715,2457.9,2457.8,3.2078]
[1730710027236,0.40717,2457.8,2457.7,0.40718]
[1730710027439,0.40716,2457.9,2457.8,0.40716]
[1730710027642,0.40716,2457.9,2457.5,3.2078]
[1730710027643,0.40717,2457.8,2457.7,0.40717]
[1730710028037,0.40717,2457.8,2457.5,3.2078]
[1730710028038,0.20617296,2457.8,2457.5,3.2078]
[1730710028243,0.20617296,2457.8,2457.2,1.25846]
[1730710028244,0.40725,2457.3,2457.2,1.25846]
[1730710028541,0.40725,2457.3,2456.8,4.19676048]
[1730710028542,1.01818,2457.2,2456.8,1.06054828]
[1730710028744,0.40733,2456.8,2456.7,1.06054828]
[1730710028938,1.01822,2457.1,2456.6,4.67570828]
[1730710029138,0.40738,2456.6,2456.4,1.48264828]
[1730710029342,0.40738,2456.6,2456.5,0.40738]
[1730710029750,0.40738,2456.6,2456.4,0.4221]
[1730710029751,0.40734,2456.8,2456.7,0.40735]
[1730710029947,3.2078,2457.3,2456.6,3.2078]
[1730710030243,0.40726,2457.3,2457.2,0.40727]
[1730710030440,0.40726,2457.3,2456.9,3.2078]
[1730710030441,0.40727,2457.2,2457.1,0.40728]
[1730710030942,0.40727,2457.2,2457.1,4.47688]
[1730710031138,0.40727,2457.2,2457.1,0.40728]
[1730710031350,0.40727,2457.2,2457.1,4.47688]
[1730710031548,3.17843048,2457.5,2457.1,4.0696]
[1730710031740,7.40429048,2457.5,2456.8,3.2078]
[1730710031945,0.4073,2457.0,2456.9,0.4073]
[1730710032336,1.01811,2457.4,2457.0,0.40729]
[1730710032337,0.40729,2457.1,2457.0,0.40729]
[1730710032543,0.40729,2457.1,2456.6,5.25739876]
[1730710032544,0.40727,2457.2,2457.1,0.40727]
[1730710032743,6.38623048,2457.5,2457.0,0.40729]
[1730710032744,0.40729,2457.1,2457.0,0.40729]
[1730710032944,0.40732,2456.9,2456.8,3.2078]
[1730710033540,0.40732,2456.9,2456.8,3.61513]
[1730710034153,0.40732,2456.9,2456.8,3.2078]
[1730710034336,1.01822,2457.1,2456.8,3.2078]
[1730710034543,0.40732,2456.9,2456.8,3.2078]
[1730710035554,0.40732,2456.9,2456.8,3.61513]
[1730710035939,0.40732,2456.9,2456.8,3.2078]
[1730710036351,0.40732,2456.9,2456.8,3.61513]
[1730710036850,3.2078,2457.2,2456.8,7.2782]
[1730710037040,0.40726,2457.3,2457.2,0.40726]
[1730710037353,0.40728,2457.2,2457.1,0.40728]
[1730710039058,0.40728,2457.1,2457.0,0.84099]
[1730710039443,0.40728,2457.1,2457.0,4.91059]
[1730710039649,0.40728,2457.2,2457.1,0.40728]
[1730710040744,0.40728,2457.1,2457.0,0.84098]
[1730710040944,0.40727,2457.2,2457.1,0.40727]
[1730710042363,0.40724,2457.4,2457.3,0.40724]
[1730710043650,0.40726,2457.3,2457.2,0.40725]
[1730710043854,0.40726,2457.3,2457.2,0.40727]
[1730710044055,0.40726,2457.3,2457.1,3.2078]
[1730710044056,0.40724,2457.4,2457.3,0.40724]
[1730710044761,0.40727,2457.3,2457.2,0.40726]
[1730710045057,0.40727,2457.3,2457.1,3.2078]
[1730710045058,0.40727,2457.2,2457.1,3.2078]
[1730710045259,4.93897,2457.2,2457.1,0.55338415]
[1730710045455,4.93897,2457.2,2456.3,0.4349]
[1730710045456,0.4074,2456.5,2456.4,0.40739]
[1730710045856,3.2078,2456.9,2456.3,4.0959]
[1730710046057,0.40736,2456.7,2456.6,0.40737]
[1730710046259,0.40738,2456.6,2456.5,0.40736]
[1730710046460,3.61518,2456.6,2456.5,0.40736]
[1730710046858,3.2078,2456.6,2456.5,0.40736]
[1730710047555,3.61517,2456.6,2456.5,0.40736]
[1730710047762,3.2078,2456.6,2456.5,0.40736]
[1730710048060,0.40736,2456.7,2456.6,0.40737]
[1730710048658,0.4074,2456.4,2456.3,0.8606]
[1730710048956,0.40745,2456.2,2456.1,0.40744]
[1730710049261,1.01851,2456.4,2456.0,3.61525]
[1730710049262,0.40745,2456.1,2456.0,3.61525]
[1730710049456,0.40743,2456.3,2456.2,0.40742]
[1730710049850,3.6152,2456.5,2456.4,0.4074]
[1730710050055,0.40738,2456.6,2456.5,0.40737]
[1730710050754,3.2078,2456.6,2456.5,0.40738]
[1730710051566,0.40735,2456.7,2456.6,0.40736]
[1730710051956,0.40737,2456.6,2456.5,0.40737]
[1730710052154,3.61517,2456.6,2456.5,0.40737]
[1730710052369,0.40742,2456.3,2456.2,0.40743]
[1730710052555,0.40739,2456.5,2456.4,0.4074]
[1730710052755,3.2078,2456.6,2456.3,0.40741]
[1730710052959,3.2078,2456.6,2455.9,4.507]
[1730710053161,3.2078,2456.6,2456.5,0.40738]
[1730710053653,0.4392,2456.9,2456.5,0.40738]
[1730710053852,3.2078,2457.1,2457.0,0.4073]
[1730710054463,3.2078,2457.1,2456.5,0.4191]
[1730710054656,3.2078,2457.1,2456.6,1.01843]
[1730710054854,0.40732,2456.9,2456.8,0.40732]
[1730710055260,0.40732,2456.9,2456.8,4.47772]
[1730710055463,3.17843048,2457.2,2456.8,4.0704]
[1730710055665,3.2078,2457.0,2456.9,0.40732]
[1730710056060,3.6151,2457.0,2456.9,0.40732]
[1730710059166,3.2078,2457.0,2456.9,0.40732]
[1730710059870,0.40727,2457.2,2457.1,0.40728]
[1730710061270,3.61507,2457.2,2457.1,0.40728]
[1730710061459,3.2078,2457.2,2457.1,0.40728]
[1730710065470,3.2078,2457.5,2457.4,0.40723]
[1730710066274,3.2078,2457.5,2457.4,4.47683]
[1730710066571,0.83841,2458.2,2457.4,9.28415048]
[1730710066775,0.4313,2458.2,2458.1,0.40712]
[1730710067667,0.4313,2458.2,2457.8,0.4489]
[1730710067870,0.40715,2458.0,2457.9,0.40714]
[1730710068272,3.2078,2458.0,2457.5,1.47692]
[1730710068483,0.40716,2457.9,2457.8,0.40715]
[1730710068974,0.40719,2457.7,2457.6,0.40718]
[1730710069273,4.22565,2458.0,2457.5,0.4589]
[1730710069575,3.17843048,2457.7,2457.2,3.2078]
[1730710069777,3.17843048,2457.5,2456.6,0.4606]
[1730710069983,1.01814,2457.3,2456.6,0.4606]
[1730710070280,0.40732,2457.0,2456.9,0.40732]
[1730710070672,0.40733,2456.9,2456.8,0.40733]
[1730710072081,0.4576,2457.1,2456.7,3.2078]
[1730710072274,0.40731,2457.0,2456.9,0.40731]
[1730710074977,0.40733,2456.9,2456.8,0.40733]
[1730710076177,0.40731,2457.0,2456.9,0.40731]
[1730710076382,3.61511,2457.0,2456.9,0.40731]
[1730710076583,3.6151,2457.0,2456.9,0.40731]
[1730710076786,0.4073,2457.0,2456.9,0.40731]
[1730710076976,0.4073,2457.0,2456.6,0.4606]
[1730710077187,3.6151,2457.0,2456.9,0.40732]
[1730710077478,3.61511,2457.0,2456.6,0.4606]
[1730710077681,3.61511,2457.0,2456.9,0.40732]
[1730710077884,3.2078,2457.0,2456.9,0.40732]
[1730710078181,3.6151,2457.0,2456.9,0.40732]
[1730710078483,0.40732,2456.9,2456.8,0.40732]
[1730710078682,3.2078,2457.0,2456.6,0.4606]
[1730710078889,3.2078,2457.0,2456.5,1.48086]
[1730710078890,6.38623048,2457.0,2456.5,0.4624]
[1730710079091,0.40736,2456.7,2456.6,0.40735]
[1730710079381,3.2078,2456.7,2456.3,0.4288]
[1730710079688,3.2078,2456.7,2456.0,2.61896966]
[1730710079689,3.2078,2456.7,2456.0,0.4627]
[1730710079906,0.4611,2456.6,2456.1,1.01863]
[1730710080188,3.2078,2456.7,2456.3,1.01854]
[1730710080485,3.2078,2456.7,2456.5,0.40737]
[1730710080787,0.40739,2456.5,2456.4,0.40739]
[1730710082977,3.2078,2456.6,2456.1,1.01862]
[1730710082978,3.61517,2456.6,2456.5,0.40738]
[1730710083282,3.2078,2456.6,2456.5,0.40738]
[1730710083488,0.83653,2456.8,2456.7,0.40735]
[1730710085384,0.83653,2456.8,2456.6,0.40736]
[1730710085385,0.40736,2456.7,2456.6,0.40736]
[1730710085581,0.83655,2456.8,2456.7,0.40735]
[1730710086388,0.40735,2456.7,2456.6,0.40736]
[1730710086686,4.04435,2456.8,2456.7,0.40735]
[1730710086889,0.83655,2456.8,2456.7,0.40735]
[1730710087188,4.04435,2456.8,2456.7,0.40735]
[1730710087588,1.01838,2456.7,2456.0,0.8915]
[1730710087888,3.2078,2456.1,2455.5,0.634227]
[1730710088083,3.2078,2455.8,2455.5,0.634227]
[1730710088288,0.8904,2456.0,2455.9,0.40748]
[1730710088483,0.8904,2456.0,2455.6,2.03766]
[1730710088484,3.2078,2456.1,2456.0,0.40747]
[1730710088991,1.6202,2456.5,2456.4,0.4074]
[1730710089288,6.83243048,2456.6,2456.1,0.4359]
[1730710089478,0.40739,2456.5,2456.4,0.40739]
[1730710089687,3.654,2456.6,2456.5,0.40738]
[1730710089987,4.06137,2456.6,2456.5,0.40738]
[1730710090187,3.654,2456.6,2456.5,0.40738]
[1730710090490,3.6458,2457.1,2456.2,3.6369]
[1730710090677,3.6458,2457.1,2456.8,0.40733]
[1730710090678,0.40733,2456.9,2456.8,0.40733]
[1730710090883,0.40731,2457.0,2456.9,0.40731]
[1730710091083,3.58570048,2457.3,2456.6,1.01843]
[1730710091289,4.52694,2457.4,2457.3,0.40725]
[1730710091490,0.40733,2456.8,2456.7,0.83645]
[1730710091682,1.01819,2457.2,2456.4,0.4242]
[1730710091683,3.17843048,2457.0,2456.4,0.4242]
[1730710091987,3.2078,2456.8,2456.4,0.8533]
[1730710092188,0.40738,2456.5,2456.4,1.26069]
[1730710092398,3.61518,2456.5,2456.4,1.26069]
[1730710092582,0.4616,2456.8,2456.4,1.26069]
[1730710092583,0.40738,2456.6,2456.4,1.26069]
[1730710092987,0.40738,2456.6,2456.5,0.40738]
[1730710093187,0.40738,2456.6,2456.4,0.8533]
[1730710093387,3.6694,2456.8,2456.4,0.8533]
[1730710093388,0.40738,2456.5,2456.4,1.26069]
[1730710093692,0.40737,2456.6,2456.5,0.40737]
[1730710093893,0.40734,2456.8,2456.7,0.40734]
[1730710094386,0.40736,2456.7,2456.6,0.40737]
[1730710094585,3.61516,2456.7,2456.6,0.40737]
[1730710094778,3.61516,2456.7,2456.4,0.8533]
[1730710094982,3.2078,2456.7,2456.4,0.4242]
[1730710095178,0.4074,2456.4,2456.3,0.40741]
[1730710096092,0.4074,2456.5,2456.4,0.4074]
[1730710096292,6.38623048,2456.6,2456.1,0.8936]
[1730710096591,3.61514,2456.8,2456.7,0.40735]
[1730710098290,3.2078,2456.8,2456.7,0.40735]
[1730710099889,3.61513,2456.8,2456.7,0.40735]
[1730710100993,3.2078,2456.8,2456.7,0.40735]
[1730710101498,3.61513,2456.8,2456.7,0.40735]
[1730710104191,3.2078,2456.8,2456.7,0.40735]
[1730710104397,3.61513,2456.8,2456.7,0.40735]
[1730710104596,3.2078,2456.8,2456.7,0.40735]
[1730710105699,3.61513,2456.8,2456.7,0.40735]
[1730710106092,3.2078,2456.8,2456.7,0.40735]
[1730710106500,3.2078,2456.8,2456.7,4.47775]
[1730710106699,0.4073,2457.1,2457.0,0.4073]
[1730710107097,0.4233,2457.2,2457.1,0.40728]
[1730710107098,0.83058,2457.2,2457.1,0.40728]
[1730710107305,0.40729,2457.1,2457.0,0.40728]
[1730710108902,0.40729,2457.1,2457.0,0.40729]
[1730710111600,6.38623048,2457.3,2456.8,1.01834]
[1730710112001,3.17843048,2457.8,2456.8,4.0696]
[1730710112211,5.99842831,2457.9,2457.8,0.40717]
[1730710112505,3.61495,2457.9,2457.8,0.40717]
[1730710112693,3.2078,2457.9,2457.8,0.40717]
[1730710113298,3.2078,2457.9,2457.5,1.2666]
[1730710113506,0.40718,2457.8,2457.7,0.40718]
[1730710114699,3.2078,2457.9,2457.8,0.40717]
[1730710114700,3.61496,2457.9,2457.8,0.40717]
[1730710115109,0.40717,2457.8,2457.7,0.40717]
[1730710116206,3.61496,2457.9,2457.8,0.40717]
[1730710116511,3.2078,2457.9,2457.8,0.40717]
[1730710116806,3.61495,2457.9,2457.8,0.40717]
[1730710117314,3.2078,2457.9,2457.8,0.40717]
[1730710118212,0.40712,2458.1,2457.7,1.01797]
[1730710118711,3.2078,2458.2,2457.5,2.28465]
[1730710118915,3.2078,2457.9,2457.5,1.2666]
[1730710119208,3.61496,2457.9,2457.8,0.40717]
[1730710119914,3.2078,2457.9,2457.8,0.40717]
[1730710120112,3.2078,2457.9,2457.5,0.8465]
[1730710120302,0.4072,2457.6,2457.5,1.25371]
[1730710121907,0.4072,2457.6,2457.5,0.82581]
[1730710122105,0.4072,2457.6,2457.5,0.40721]
[1730710123210,0.40722,2457.5,2457.4,0.40722]
[1730710123510,3.17843048,2457.6,2457.2,1.3157]
[1730710123716,0.40723,2457.5,2457.4,0.40722]
[1730710124222,3.17843048,2457.6,2457.2,1.3157]
[1730710124223,3.58564048,2457.6,2457.5,0.40722]
[1730710124819,7.65444048,2457.6,2457.5,0.40722]
[1730710125221,0.40721,2457.6,2457.5,0.40722]
[1730710125612,3.2078,2457.7,2457.2,1.3157]
[1730710125817,0.40723,2457.5,2457.4,0.40722]
[1730710126510,0.40724,2457.4,2457.3,0.40724]
[1730710126711,3.2078,2457.4,2456.9,0.4478]
[1730710127013,0.40733,2456.9,2456.8,0.40732]
[1730710127419,0.40732,2457.0,2456.9,0.40731]
[1730710129020,5.05926048,2457.3,2456.7,3.2078]
[1730710129021,4.04113048,2457.3,2456.7,3.2078]
[1730710129221,0.40729,2457.1,2457.0,0.40729]
[1730710130107,0.40729,2457.1,2456.4,0.882]
[1730710130108,7.24803048,2457.1,2456.4,0.882]
[1730710130313,3.17843048,2456.7,2456.4,0.43]
[1730710130619,4.19682048,2456.7,2456.3,0.4222]
[1730710130814,0.902,2456.6,2456.3,0.4222]
[1730710131020,0.4074,2456.4,2456.3,0.82961]
[1730710131518,0.4074,2456.5,2456.4,0.40739]
[1730710131722,0.4074,2456.4,2456.3,0.82961]
[1730710132325,3.6152,2456.4,2456.3,0.82961]
[1730710132621,0.40742,2456.3,2456.2,0.40743]
[1730710132810,3.61521,2456.4,2456.3,0.40742]
[1730710133918,3.2078,2456.4,2456.0,0.9005]
[1730710134122,3.2078,2456.4,2456.0,0.4443]
[1730710134424,0.40743,2456.3,2456.2,0.40743]
[1730710134827,3.61523,2456.3,2456.2,0.40743]
[1730710136127,0.40741,2456.4,2456.3,0.40741]
[1730710136722,0.40742,2456.3,2456.2,0.40742]
[1730710136921,5.12823,2456.6,2456.0,1.46296]
[1730710137124,5.12823,2456.6,2456.0,0.4443]
[1730710137325,0.40742,2456.3,2456.2,0.40742]
[1730710138124,0.40742,2456.3,2455.9,0.4611]
[1730710138125,4.0712,2456.3,2455.9,0.4611]
[1730710138331,3.2078,2456.4,2455.9,0.4611]
[1730710138526,0.40745,2456.1,2456.0,0.40745]
[1730710139125,3.2078,2456.4,2455.7,3.2078]
[1730710139424,0.40745,2456.1,2456.0,0.40745]
[1730710140022,0.40742,2456.3,2456.2,0.40743]
[1730710140222,3.2078,2456.4,2456.3,0.40742]
[1730710140422,3.61521,2456.4,2456.3,0.40742]
[1730710140721,0.40743,2456.3,2456.2,0.40743]
[1730710140927,0.40744,2456.2,2456.1,0.40744]
[1730710141828,0.40744,2456.2,2456.1,0.40745]
[1730710142023,3.2078,2456.3,2455.9,0.8771]
[1730710142223,0.40747,2456.0,2455.9,1.28458]
[1730710143122,0.4075,2455.8,2455.3,1.01894]
[1730710143328,0.4075,2455.8,2455.6,0.40752]
[1730710143532,0.4075,2455.8,2455.5,0.45]
[1730710144124,0.4075,2455.8,2455.7,3.61532]
[1730710145225,4.19711048,2456.0,2455.7,3.2078]
[1730710145426,4.19711048,2456.0,2455.7,3.61531]
[1730710145427,0.4075,2455.8,2455.7,3.61531]
[1730710146324,0.4075,2455.8,2455.7,3.2078]
[1730710146721,4.4795,2455.8,2455.7,3.2078]
[1730710147227,0.4075,2455.8,2455.7,3.2078]
[1730710148729,1.01872,2455.9,2455.5,0.85753]
[1730710148934,0.4075,2455.8,2455.7,3.2078]
[1730710149528,0.40752,2455.7,2455.6,0.40753]
[1730710149726,3.61532,2455.7,2455.6,0.40753]
[1730710149930,0.40752,2455.7,2455.6,0.40753]
[1730710150130,3.2078,2455.7,2455.6,0.40753]
[1730710150329,3.61532,2455.7,2455.6,0.40753]
[1730710150930,3.2078,2455.7,2455.5,0.45]
[1730710151132,3.2078,2455.7,2455.0,3.2078]
[1730710151133,1.01885,2455.6,2455.0,3.2078]
[1730710151434,3.17843048,2455.2,2454.4,3.2078]
[1730710151634,3.2078,2455.1,2454.7,0.4341]
[1730710151831,3.61542,2455.1,2454.9,0.40764]
[1730710152135,3.61542,2455.1,2455.0,0.40763]
[1730710152339,3.61542,2455.1,2454.7,0.4341]
[1730710152539,3.61542,2455.1,2455.0,0.40763]
[1730710152834,0.40764,2455.0,2454.9,0.40765]
[1730710153036,0.40764,2455.0,2454.8,0.40765]
[1730710153229,3.2078,2455.1,2454.7,0.4341]
[1730710153437,0.40765,2454.9,2454.7,0.4341]
[1730710153635,0.40765,2454.9,2454.8,0.40767]
[1730710153838,0.40765,2454.9,2454.7,0.84177]
[1730710154036,0.40763,2455.0,2454.7,0.84177]
[1730710154240,0.40767,2454.8,2454.7,0.84177]
[1730710154432,0.40765,2454.9,2454.8,0.40766]
[1730710154632,3.6718,2455.1,2454.7,0.4341]
[1730710154944,3.6718,2455.1,2455.0,0.40763]
[1730710154945,4.07943,2455.1,2455.0,0.40763]
[1730710155136,3.2078,2455.1,2455.0,0.40763]
[1730710158131,3.2078,2455.1,2454.7,1.45331]
[1730710158538,3.61542,2455.1,2454.9,0.40764]
[1730710158938,0.40765,2455.0,2454.8,0.40766]
[1730710159143,3.17843048,2455.0,2454.5,0.4211]
[1730710159345,0.40767,2454.8,2454.6,0.40769]
[1730710159843,0.87117,2454.8,2454.6,0.40769]
[1730710160041,0.4635,2454.8,2454.5,0.4211]
[1730710160241,0.4635,2454.8,2454.7,0.40769]
[1730710160544,1.01816404,2455.4,2455.0,0.40764]
[1730710160744,1.01816404,2455.4,2455.3,0.40759]
[1730710162237,1.01816404,2455.4,2455.3,4.48039]
[1730710163842,1.01816404,2455.4,2455.3,0.40759]
[1730710164147,1.42576404,2455.4,2455.3,0.40759]
[1730710164641,8.29876404,2455.4,2455.1,0.4586]
[1730710164943,3.17843048,2455.2,2454.7,0.4339]
[1730710165243,3.6583,2455.1,2454.7,0.4339]
[1730710165438,0.40772,2454.7,2454.6,0.4495]
[1730710165741,0.40772,2454.7,2454.5,0.40774]
[1730710165742,0.40773,2454.7,2454.5,0.40774]
[1730710166042,0.40773,2454.6,2454.5,0.40774]
[1730710166748,0.40773,2454.7,2454.5,0.40774]
[1730710166937,3.2078,2454.8,2454.4,0.4339]
[1730710167136,0.40773,2454.7,2454.5,0.40774]
[1730710167450,0.40773,2454.6,2454.5,0.40774]
[1730710167745,3.2078,2454.8,2454.7,0.40772]
[1730710167941,3.61551,2454.8,2454.7,0.40772]
[1730710168146,3.2078,2454.8,2454.4,0.4339]
[1730710168336,0.40774,2454.7,2454.5,0.40774]
[1730710168542,3.2078,2454.8,2454.4,0.4339]
[1730710169042,0.40773,2454.7,2454.6,0.40774]
[1730710169447,0.40773,2454.7,2454.4,0.4339]
[1730710169448,0.40775,2454.6,2454.5,0.40775]
[1730710169633,0.40775,2454.6,2454.5,0.40776]
[1730710170039,3.17843048,2454.7,2454.4,0.4339]
[1730710170254,3.17843048,2454.7,2454.2,0.4078]
[1730710170255,0.40779,2454.4,2454.2,0.4078]
[1730710170541,0.40779,2454.4,2453.9,1.01964]
[1730710170542,0.40778,2454.4,2453.9,1.90424]
[1730710170744,0.40778,2454.4,2454.3,0.40779]
[1730710170948,0.40778,2454.4,2453.9,1.90424]
[1730710171146,6.84753048,2454.5,2453.9,1.90424]
[1730710171847,7.25529048,2454.5,2454.3,0.40777]
[1730710172038,7.25529048,2454.5,2454.0,1.01961]
[1730710172039,7.25529048,2454.5,2454.4,0.40777]
[1730710172233,6.84753048,2454.5,2454.4,0.40777]
[1730710172638,7.25529048,2454.5,2454.4,0.40777]
[1730710173048,6.84753048,2454.5,2454.4,0.40777]
[1730710173240,10.92193048,2454.5,2453.9,1.01964]
[1730710173449,3.17843048,2454.4,2454.3,0.40779]
[1730710173646,3.17843048,2454.4,2453.9,1.01965]
[1730710173946,3.58621048,2454.4,2454.3,0.40779]
[1730710174243,3.58621048,2454.4,2453.9,1.01965]
[1730710174545,3.17843048,2454.4,2453.9,1.01965]
[1730710174751,3.58620048,2454.4,2454.3,0.40779]
[1730710175246,3.2078,2454.5,2454.4,0.40777]
[1730710175942,3.17843048,2454.7,2454.6,0.40774]
[1730710176346,3.17843048,2454.7,2454.3,0.447]
[1730710176545,3.58620048,2454.4,2454.2,0.4078]
[1730710176746,3.58620048,2454.4,2454.2,0.40781]
[1730710176747,0.4616,2454.3,2454.2,0.40781]
[1730710177145,3.62293048,2454.4,2454.3,0.40779]
[1730710177445,4.03070048,2454.4,2454.3,0.40779]
[1730710177752,3.62293048,2454.4,2454.3,0.40779]
[1730710177952,4.03070048,2454.4,2454.3,0.40779]
[1730710178252,6.83073048,2454.4,2454.3,0.40779]
[1730710178547,7.23850048,2454.4,2454.3,0.40779]
[1730710179152,6.83073048,2454.4,2454.3,0.40779]
[1730710179853,7.23850048,2454.4,2454.3,0.40779]
[1730710180254,7.23850048,2454.4,2453.9,0.8785]
[1730710180255,7.85018048,2454.4,2453.9,0.8785]
[1730710180552,3.2078,2454.0,2453.9,1.28636]
[1730710181244,6.38623048,2454.0,2453.8,0.40786]
[1730710181445,6.38623048,2454.0,2453.9,0.40786]
[1730710181747,6.38623048,2454.0,2453.8,0.40786]
[1730710181948,0.40786,2453.9,2453.8,0.40786]
[1730710183051,6.38623048,2454.0,2453.6,1.01977]
[1730710183357,6.79408048,2454.0,2453.9,0.40786]
[1730710183855,0.40786,2453.9,2453.8,0.40786]
[1730710184053,6.38623048,2454.0,2453.6,1.01976]
[1730710184257,3.2078,2454.0,2453.9,0.40786]
[1730710184655,3.61564,2454.0,2453.9,0.40786]
[1730710184856,10.86927048,2454.0,2453.9,0.40786]
[1730710185256,10.86927048,2454.0,2453.8,0.40786]
[1730710185257,0.40786,2453.9,2453.8,0.40786]
[1730710186160,6.79409048,2454.0,2453.9,0.40786]
[1730710186656,10.46143048,2454.0,2453.9,0.40786]
[1730710186960,10.86927048,2454.0,2453.9,0.40786]
[1730710187859,6.38623048,2454.0,2453.9,0.40786]
[1730710188758,10.46143048,2454.0,2453.6,1.01976]
[1730710188962,6.38623048,2454.0,2453.4,0.8848]
[1730710189260,3.17843048,2453.7,2453.6,0.40791]
[1730710190255,3.17843048,2453.9,2453.8,0.40787]
[1730710191658,0.45,2454.1,2453.8,0.40787]
[1730710191659,3.17843048,2454.1,2453.8,4.0752]
[1730710191852,3.58620048,2454.4,2454.3,0.40779]
[1730710192048,6.79400048,2454.4,2454.3,0.40779]
[1730710192262,6.38623048,2454.4,2454.3,0.40779]
[1730710193067,10.46063048,2454.4,2454.0,1.44101]
[1730710193370,0.4327,2454.5,2453.6,1.01977]
[1730710193371,6.38623048,2454.1,2453.6,1.01977]
[1730710193656,6.38623048,2454.1,2454.0,0.40784]
[1730710193857,10.86925048,2454.1,2454.0,0.40784]
[1730710195260,10.86925048,2454.1,2453.7,1.01973]
[1730710195564,6.79405048,2454.1,2453.8,0.40787]
[1730710195765,6.79405048,2454.1,2453.7,1.01973]
[1730710195970,6.79405048,2454.1,2453.9,0.40784]
[1730710196470,3.58625048,2454.1,2454.0,0.40784]
[1730710197063,10.86925048,2454.1,2453.9,0.40784]
[1730710197371,6.79405048,2454.1,2454.0,0.40784]
[1730710198554,6.38623048,2454.1,2454.0,0.40784]
[1730710198754,3.2078,2454.1,2454.0,0.40784]
[1730710198969,3.61562,2454.1,2454.0,0.40784]
[1730710199263,6.79405048,2454.1,2454.0,0.40784]
[1730710200265,6.38623048,2454.1,2454.0,0.40784]
[1730710200461,3.2078,2454.1,2454.0,0.40784]
[1730710201464,6.79405048,2454.1,2454.0,0.40784]